[Event "Titled Tuesday Blitz May 23 Early 2023"]
[White "Manukian, Artak"]
[Black "Radzhabov, Rodion"]
[WhiteFideId "13301373"]
[BlackFideId "884715"]
[WhiteElo "2130"]
[BlackElo "2215"]
[Result "0-1"]
[Round "02"]
[TimeControl "180+2"]
[Date "2023.05.23"]
[WhiteClock "0:00:17"]
[BlackClock "0:00:17"]

1. e4 {[%clk 0:03:00]}  c5 {[%clk 0:02:59]} 2. Nf3 {[%clk 0:03:00]}  e6 {[%clk 0:02:59]} 3. c3 {[%clk 0:03:00]}  Nf6 {[%clk 0:02:59]} 4. e5 {[%clk 0:03:01]}  Nd5 {[%clk 0:02:59]} 5. d4 {[%clk 0:03:01]}  cxd4 {[%clk 0:03:00]} 6. cxd4 {[%clk 0:03:02]}  b6 {[%clk 0:02:59]} 7. Nc3 {[%clk 0:03:03]}  Nxc3 {[%clk 0:02:54]} 8. bxc3 {[%clk 0:03:04]}  Ba6 {[%clk 0:02:53]} 9. Bxa6 {[%clk 0:03:00]}  Nxa6 {[%clk 0:02:54]} 10. O-O {[%clk 0:03:00]}  Be7 {[%clk 0:02:52]} 11. a4 {[%clk 0:02:52]}  Rc8 {[%clk 0:02:50]} 12. Qd3 {[%clk 0:02:48]}  Nc7 {[%clk 0:02:45]} 13. Ba3 {[%clk 0:02:45]}  Nd5 {[%clk 0:02:42]} 14. Bxe7 {[%clk 0:02:32]}  Qxe7 {[%clk 0:02:41]} 15. Rfc1 {[%clk 0:02:29]}  O-O {[%clk 0:02:27]} 16. a5 {[%clk 0:02:29]}  b5 {[%clk 0:02:17]} 17. a6 {[%clk 0:02:27]}  Rc4 {[%clk 0:01:51]} 18. Nd2 {[%clk 0:02:26]}  Rc6 {[%clk 0:01:41]} 19. Ne4 {[%clk 0:02:26]}  f5 {[%clk 0:01:05]} 20. Nd6 {[%clk 0:01:44]}  Qg5 {[%clk 0:00:58]} 21. g3 {[%clk 0:01:37]}  b4 {[%clk 0:00:42]} 22. c4 {[%clk 0:01:30]}  Nc3 {[%clk 0:00:40]} 23. f4 {[%clk 0:01:25]}  Qg4 {[%clk 0:00:39]} 24. Rxc3 {[%clk 0:00:57]}  bxc3 {[%clk 0:00:38]} 25. Qxc3 {[%clk 0:00:58]}  g5 {[%clk 0:00:38]} 26. Qe3 {[%clk 0:00:48]}  gxf4 {[%clk 0:00:25]} 27. Qxf4 {[%clk 0:00:46]}  Rb8 {[%clk 0:00:18]} 28. Qxg4+ {[%clk 0:00:44]}  fxg4 {[%clk 0:00:19]} 29. Kf2 {[%clk 0:00:34]}  Rb2+ {[%clk 0:00:19]} 30. Ke3 {[%clk 0:00:34]}  Rxh2 {[%clk 0:00:18]} 31. Rb1 {[%clk 0:00:28]}  Rxa6 {[%clk 0:00:16]} 32. Rb8+ {[%clk 0:00:27]}  Kg7 {[%clk 0:00:16]} 33. Rb7 {[%clk 0:00:25]}  h5 {[%clk 0:00:15]} 34. Rxd7+ {[%clk 0:00:25]}  Kg6 {[%clk 0:00:15]} 35. Re7 {[%clk 0:00:20]}  Ra3+ {[%clk 0:00:16]} 36. Kf4 {[%clk 0:00:16]}  Rf2+ {[%clk 0:00:16]} 37. Ke4 {[%clk 0:00:16]}  Re2+ {[%clk 0:00:16]} 38. Kf4 {[%clk 0:00:17]}  Rf3# {[%clk 0:00:17]} 0-1


[Site "https://www.chess.com"]

[Event "Titled Tuesday Blitz May 23 Early 2023"]
[White "Domingo Nunez, Ruben"]
[Black "Mestnikov, Aisen"]
[WhiteFideId "22245570"]
[BlackFideId "34130117"]
[WhiteElo "2404"]
[BlackElo "1971"]
[Result "1-0"]
[Round "02"]
[TimeControl "180+2"]
[Date "2023.05.23"]
[WhiteClock "0:00:49"]
[BlackClock "0:00:00"]

1. c4 {[%clk 0:03:00]}  c5 {[%clk 0:02:59]} 2. Nc3 {[%clk 0:03:00]}  Nf6 {[%clk 0:02:59]} 3. g3 {[%clk 0:03:00]}  e6 {[%clk 0:03:00]} 4. Bg2 {[%clk 0:03:00]}  d5 {[%clk 0:03:00]} 5. cxd5 {[%clk 0:03:01]}  exd5 {[%clk 0:03:01]} 6. Nf3 {[%clk 0:03:00]}  d4 {[%clk 0:03:01]} 7. Nb1 {[%clk 0:03:00]}  Nc6 {[%clk 0:03:01]} 8. O-O {[%clk 0:03:00]}  Bd6 {[%clk 0:03:02]} 9. d3 {[%clk 0:02:59]}  O-O {[%clk 0:03:02]} 10. Na3 {[%clk 0:03:00]}  a6 {[%clk 0:03:01]} 11. Nc4 {[%clk 0:03:00]}  Bc7 {[%clk 0:03:01]} 12. a4 {[%clk 0:03:00]}  b6 {[%clk 0:03:02]} 13. Nfe5 {[%clk 0:02:58]}  Nxe5 {[%clk 0:02:57]} 14. Bxa8 {[%clk 0:02:56]}  Nxc4 {[%clk 0:02:56]} 15. dxc4 {[%clk 0:02:57]}  Be6 {[%clk 0:02:45]} 16. Bf3 {[%clk 0:02:46]}  Bxc4 {[%clk 0:02:45]} 17. b3 {[%clk 0:02:46]}  Bd5 {[%clk 0:02:41]} 18. Qd3 {[%clk 0:02:46]}  Bxf3 {[%clk 0:02:38]} 19. exf3 {[%clk 0:02:39]}  Qd5 {[%clk 0:02:31]} 20. Kg2 {[%clk 0:02:37]}  Qb7 {[%clk 0:02:14]} 21. Re1 {[%clk 0:02:32]}  b5 {[%clk 0:01:59]} 22. Bd2 {[%clk 0:02:32]}  Rd8 {[%clk 0:01:50]} 23. Bg5 {[%clk 0:02:24]}  Qc6 {[%clk 0:01:16]} 24. Bxf6 {[%clk 0:01:41]}  gxf6 {[%clk 0:01:12]} 25. Re4 {[%clk 0:01:34]}  f5 {[%clk 0:00:58]} 26. Ree1 {[%clk 0:01:32]}  Rd5 {[%clk 0:00:18]} 27. axb5 {[%clk 0:01:32]}  axb5 {[%clk 0:00:18]} 28. Ra7 {[%clk 0:01:32]}  Bd6 {[%clk 0:00:18]} 29. Rc1 {[%clk 0:01:14]}  Re5 {[%clk 0:00:19]} 30. Qxd4 {[%clk 0:01:08]}  Qxf3+ {[%clk 0:00:12]} 31. Kxf3 {[%clk 0:01:08]}  cxd4 {[%clk 0:00:13]} 32. Rd7 {[%clk 0:01:02]}  Ba3 {[%clk 0:00:10]} 33. Rc8+ {[%clk 0:01:02]}  Kg7 {[%clk 0:00:11]} 34. Rxd4 {[%clk 0:01:02]}  Re1 {[%clk 0:00:11]} 35. Rb8 {[%clk 0:00:53]}  Bc5 {[%clk 0:00:10]} 36. Rf4 {[%clk 0:00:52]}  Rf1 {[%clk 0:00:09]} 37. Kg2 {[%clk 0:00:52]}  Rc1 {[%clk 0:00:05]} 38. Rxb5 {[%clk 0:00:50]}  Be7 {[%clk 0:00:05]} 39. Rbxf5 {[%clk 0:00:49]}  Rc2 {[%clk 0:00:00]} 40. Rxf7+ {[%clk 0:00:49]} 1-0


[Site "https://www.chess.com"]

[Event "Titled Tuesday Blitz May 23 Early 2023"]
[White "Stoleriu, George"]
[Black "Rodriguez, Santiago"]
[WhiteFideId "1227505"]
[BlackFideId "3000591"]
[WhiteElo "2308"]
[BlackElo "2249"]
[Result "1-0"]
[Round "02"]
[TimeControl "180+2"]
[Date "2023.05.23"]
[WhiteClock "0:00:07"]
[BlackClock "0:00:59"]

1. e4 {[%clk 0:03:00]}  c5 {[%clk 0:02:59]} 2. b3 {[%clk 0:02:56]}  Nc6 {[%clk 0:02:58]} 3. Bb2 {[%clk 0:02:54]}  d6 {[%clk 0:02:59]} 4. Bb5 {[%clk 0:02:53]}  Bd7 {[%clk 0:02:58]} 5. f4 {[%clk 0:02:52]}  a6 {[%clk 0:02:59]} 6. Bxc6 {[%clk 0:02:51]}  Bxc6 {[%clk 0:02:59]} 7. d3 {[%clk 0:02:51]}  e6 {[%clk 0:02:59]} 8. Nf3 {[%clk 0:02:49]}  d5 {[%clk 0:02:59]} 9. Nbd2 {[%clk 0:02:47]}  dxe4 {[%clk 0:02:57]} 10. dxe4 {[%clk 0:02:44]}  Nf6 {[%clk 0:02:57]} 11. Qe2 {[%clk 0:02:38]}  Bb5 {[%clk 0:02:57]} 12. c4 {[%clk 0:02:36]}  Bc6 {[%clk 0:02:57]} 13. O-O-O {[%clk 0:02:34]}  Qa5 {[%clk 0:02:57]} 14. Kb1 {[%clk 0:02:29]}  O-O-O {[%clk 0:02:56]} 15. e5 {[%clk 0:02:22]}  Ng4 {[%clk 0:02:39]} 16. h3 {[%clk 0:02:13]}  Nh6 {[%clk 0:02:39]} 17. g4 {[%clk 0:01:57]}  Rxd2 {[%clk 0:02:35]} 18. Nxd2 {[%clk 0:01:39]}  Bxh1 {[%clk 0:02:32]} 19. Rxh1 {[%clk 0:01:40]}  Be7 {[%clk 0:02:31]} 20. Ne4 {[%clk 0:01:36]}  Rd8 {[%clk 0:02:30]} 21. Rd1 {[%clk 0:01:35]}  Rxd1+ {[%clk 0:02:18]} 22. Qxd1 {[%clk 0:01:36]}  Qd8 {[%clk 0:02:18]} 23. Qxd8+ {[%clk 0:00:31]}  Kxd8 {[%clk 0:02:19]} 24. Kc2 {[%clk 0:00:28]}  Kc7 {[%clk 0:02:13]} 25. Kd3 {[%clk 0:00:27]}  b6 {[%clk 0:02:11]} 26. Bc1 {[%clk 0:00:24]}  f5 {[%clk 0:02:03]} 27. exf6 {[%clk 0:00:21]}  gxf6 {[%clk 0:02:04]} 28. f5 {[%clk 0:00:20]}  exf5 {[%clk 0:01:59]} 29. Bxh6 {[%clk 0:00:20]}  fxe4+ {[%clk 0:01:59]} 30. Kxe4 {[%clk 0:00:21]}  b5 {[%clk 0:01:50]} 31. Kf5 {[%clk 0:00:16]}  Kb6 {[%clk 0:01:39]} 32. Bd2 {[%clk 0:00:08]}  a5 {[%clk 0:01:31]} 33. a4 {[%clk 0:00:06]}  b4 {[%clk 0:01:19]} 34. Ke6 {[%clk 0:00:06]}  Bd8 {[%clk 0:01:18]} 35. Bc1 {[%clk 0:00:06]}  Kc6 {[%clk 0:01:18]} 36. Bb2 {[%clk 0:00:07]}  Bc7 {[%clk 0:01:02]} 37. Bxf6 {[%clk 0:00:06]}  Bf4 {[%clk 0:01:03]} 38. h4 {[%clk 0:00:05]}  Kc7 {[%clk 0:01:03]} 39. h5 {[%clk 0:00:05]}  Kc6 {[%clk 0:01:02]} 40. g5 {[%clk 0:00:06]}  Kc7 {[%clk 0:01:01]} 41. g6 {[%clk 0:00:06]}  hxg6 {[%clk 0:00:59]} 42. hxg6 {[%clk 0:00:07]} 1-0


[Site "https://www.chess.com"]

[Event "Titled Tuesday Blitz May 23 Early 2023"]
[White "Vovk, Orest"]
[Black "Pacan-Milej, Kosma"]
[WhiteFideId "14113490"]
[BlackFideId "21800537"]
[WhiteElo "2215"]
[BlackElo "2302"]
[Result "0-1"]
[Round "02"]
[TimeControl "180+2"]
[Date "2023.05.23"]
[WhiteClock "0:00:00"]
[BlackClock "0:00:32"]

1. h4 {[%clk 0:02:55]}  e5 {[%clk 0:02:59]} 2. h5 {[%clk 0:02:54]}  d5 {[%clk 0:02:59]} 3. h6 {[%clk 0:02:52]}  Nxh6 {[%clk 0:02:59]} 4. d4 {[%clk 0:02:50]}  Ng4 {[%clk 0:02:52]} 5. f3 {[%clk 0:02:50]}  Nf6 {[%clk 0:02:21]} 6. dxe5 {[%clk 0:02:49]}  Nfd7 {[%clk 0:02:21]} 7. Qxd5 {[%clk 0:02:47]}  Nc6 {[%clk 0:02:20]} 8. e6 {[%clk 0:02:46]}  fxe6 {[%clk 0:02:13]} 9. Qxe6+ {[%clk 0:02:47]}  Be7 {[%clk 0:02:13]} 10. Bf4 {[%clk 0:01:16]}  Nde5 {[%clk 0:01:53]} 11. Qb3 {[%clk 0:01:03]}  Nd4 {[%clk 0:01:39]} 12. Rxh7 {[%clk 0:00:54]}  Rf8 {[%clk 0:01:25]} 13. Bxe5 {[%clk 0:00:41]}  Nxb3 {[%clk 0:01:22]} 14. cxb3 {[%clk 0:00:40]}  Bf6 {[%clk 0:01:20]} 15. Bxf6 {[%clk 0:00:35]}  Qxf6 {[%clk 0:01:20]} 16. Nc3 {[%clk 0:00:35]}  Bf5 {[%clk 0:01:19]} 17. Rh1 {[%clk 0:00:30]}  O-O-O {[%clk 0:01:17]} 18. e4 {[%clk 0:00:30]}  Rfe8 {[%clk 0:01:13]} 19. Nge2 {[%clk 0:00:25]}  Be6 {[%clk 0:01:11]} 20. Rh5 {[%clk 0:00:08]}  g5 {[%clk 0:01:10]} 21. Nc1 {[%clk 0:00:06]}  Bf7 {[%clk 0:01:05]} 22. Rh7 {[%clk 0:00:05]}  Bg6 {[%clk 0:01:04]} 23. Rh6 {[%clk 0:00:04]}  Qg7 {[%clk 0:01:01]} 24. Rh1 {[%clk 0:00:03]}  g4 {[%clk 0:01:01]} 25. Nd3 {[%clk 0:00:03]}  gxf3 {[%clk 0:01:00]} 26. gxf3 {[%clk 0:00:04]}  Qd4 {[%clk 0:00:41]} 27. O-O-O {[%clk 0:00:04]}  Qe3+ {[%clk 0:00:40]} 28. Kc2 {[%clk 0:00:03]}  Qxf3 {[%clk 0:00:39]} 29. Be2 {[%clk 0:00:02]}  Qe3 {[%clk 0:00:36]} 30. Rhg1 {[%clk 0:00:02]}  Bxe4 {[%clk 0:00:35]} 31. Bf1 {[%clk 0:00:01]}  Bxd3+ {[%clk 0:00:33]} 32. Bxd3 {[%clk 0:00:00]}  Rxd3 {[%clk 0:00:32]} 0-1


[Site "https://www.chess.com"]

[Event "Titled Tuesday Blitz May 23 Early 2023"]
[White "Mendez Fortes, Eduardo Jesus"]
[Black "Kohler, Aran"]
[WhiteFideId "3502376"]
[BlackFideId "1002856"]
[WhiteElo "2307"]
[BlackElo "2408"]
[Result "1-0"]
[Round "02"]
[TimeControl "180+2"]
[Date "2023.05.23"]
[WhiteClock "0:02:48"]
[BlackClock "0:00:04"]

1. e4 {[%clk 0:03:00]}  c6 {[%clk 0:03:00]} 2. d4 {[%clk 0:03:00]}  d5 {[%clk 0:03:00]} 3. Nc3 {[%clk 0:03:01]}  dxe4 {[%clk 0:03:00]} 4. Nxe4 {[%clk 0:03:02]}  Bf5 {[%clk 0:03:00]} 5. Ng3 {[%clk 0:03:02]}  Bg6 {[%clk 0:03:00]} 6. Nh3 {[%clk 0:03:03]}  e6 {[%clk 0:02:56]} 7. Nf4 {[%clk 0:03:03]}  Bd6 {[%clk 0:02:56]} 8. h4 {[%clk 0:03:03]}  Qc7 {[%clk 0:02:49]} 9. Nxg6 {[%clk 0:03:03]}  hxg6 {[%clk 0:02:48]} 10. Ne4 {[%clk 0:03:04]}  Bf4 {[%clk 0:02:28]} 11. Bxf4 {[%clk 0:03:03]}  Qxf4 {[%clk 0:02:27]} 12. Ng5 {[%clk 0:03:03]}  Nf6 {[%clk 0:02:17]} 13. g3 {[%clk 0:03:01]}  Qd6 {[%clk 0:02:08]} 14. c3 {[%clk 0:03:00]}  Nbd7 {[%clk 0:02:08]} 15. Bg2 {[%clk 0:03:00]}  O-O {[%clk 0:01:29]} 16. Qc2 {[%clk 0:02:58]}  c5 {[%clk 0:01:22]} 17. O-O-O {[%clk 0:02:58]}  cxd4 {[%clk 0:01:07]} 18. Rxd4 {[%clk 0:02:59]}  Qa6 {[%clk 0:01:07]} 19. Kb1 {[%clk 0:02:59]}  Rac8 {[%clk 0:01:06]} 20. Rhd1 {[%clk 0:02:58]}  Nc5 {[%clk 0:00:46]} 21. f4 {[%clk 0:02:57]}  Ng4 {[%clk 0:00:28]} 22. Rd6 {[%clk 0:02:57]}  Ne3 {[%clk 0:00:18]} 23. Rxa6 {[%clk 0:02:55]}  Nxc2 {[%clk 0:00:18]} 24. Rxa7 {[%clk 0:02:55]}  Ne3 {[%clk 0:00:17]} 25. Rd2 {[%clk 0:02:55]}  Nxg2 {[%clk 0:00:17]} 26. Rxg2 {[%clk 0:02:55]}  Rfd8 {[%clk 0:00:17]} 27. Kc2 {[%clk 0:02:52]}  Rd7 {[%clk 0:00:15]} 28. Nf3 {[%clk 0:02:52]}  f6 {[%clk 0:00:14]} 29. Nd4 {[%clk 0:02:51]}  Kf7 {[%clk 0:00:13]} 30. Re2 {[%clk 0:02:50]}  Na6 {[%clk 0:00:08]} 31. Rxe6 {[%clk 0:02:47]}  Rxd4 {[%clk 0:00:08]} 32. Rexa6 {[%clk 0:02:46]}  Rd7 {[%clk 0:00:05]} 33. Rb6 {[%clk 0:02:46]}  Rcd8 {[%clk 0:00:06]} 34. Rbxb7 {[%clk 0:02:46]}  Ke6 {[%clk 0:00:06]} 35. Rxd7 {[%clk 0:02:46]}  Rxd7 {[%clk 0:00:07]} 36. Rxd7 {[%clk 0:02:46]}  Kxd7 {[%clk 0:00:07]} 37. Kd3 {[%clk 0:02:47]}  Ke6 {[%clk 0:00:07]} 38. Ke4 {[%clk 0:02:48]}  f5+ {[%clk 0:00:04]} 39. Kd4 {[%clk 0:02:48]} 1-0


[Site "https://www.chess.com"]

[Event "Titled Tuesday Blitz May 23 Early 2023"]
[White "caropawn10"]
[Black "Fajdetic, Hrvoje"]
[BlackFideId "14501945"]
[WhiteElo "2656"]
[BlackElo "2185"]
[Result "1-0"]
[Round "02"]
[TimeControl "180+2"]
[Date "2023.05.23"]
[WhiteClock "0:01:59"]
[BlackClock "0:00:31"]

1. c4 {[%clk 0:03:00]}  f5 {[%clk 0:02:58]} 2. Nc3 {[%clk 0:03:00]}  Nf6 {[%clk 0:02:57]} 3. d4 {[%clk 0:03:00]}  e6 {[%clk 0:02:57]} 4. Nf3 {[%clk 0:03:01]}  Bb4 {[%clk 0:02:57]} 5. Bd2 {[%clk 0:03:01]}  Bxc3 {[%clk 0:02:55]} 6. Bxc3 {[%clk 0:03:01]}  Ne4 {[%clk 0:02:56]} 7. Rc1 {[%clk 0:03:01]}  O-O {[%clk 0:02:55]} 8. g3 {[%clk 0:03:01]}  d6 {[%clk 0:02:55]} 9. Bg2 {[%clk 0:03:02]}  Qe8 {[%clk 0:02:52]} 10. O-O {[%clk 0:03:02]}  Nxc3 {[%clk 0:02:48]} 11. Rxc3 {[%clk 0:03:02]}  a5 {[%clk 0:02:46]} 12. Re1 {[%clk 0:02:57]}  Qg6 {[%clk 0:02:33]} 13. Qd2 {[%clk 0:02:53]}  Nc6 {[%clk 0:02:24]} 14. e4 {[%clk 0:02:36]}  e5 {[%clk 0:02:14]} 15. dxe5 {[%clk 0:02:32]}  dxe5 {[%clk 0:02:03]} 16. Nh4 {[%clk 0:02:30]}  Qf6 {[%clk 0:01:52]} 17. Nxf5 {[%clk 0:02:24]}  Bxf5 {[%clk 0:01:49]} 18. exf5 {[%clk 0:02:25]}  Nd4 {[%clk 0:01:44]} 19. Rce3 {[%clk 0:02:14]}  Rae8 {[%clk 0:01:25]} 20. f4 {[%clk 0:02:07]}  Qxf5 {[%clk 0:01:16]} 21. Rxe5 {[%clk 0:01:59]}  Rxe5 {[%clk 0:01:06]} 22. Rxe5 {[%clk 0:02:00]}  Qb1+ {[%clk 0:00:31]} 23. Re1 {[%clk 0:01:59]} 1-0


[Site "https://www.chess.com"]

[Event "Titled Tuesday Blitz May 23 Early 2023"]
[White "Wimalasuriya, Kasun M."]
[Black "Ehlvest, Jaan"]
[WhiteFideId "9906789"]
[BlackFideId "4500016"]
[WhiteElo "2284"]
[BlackElo "2442"]
[Result "0-1"]
[Round "02"]
[TimeControl "180+2"]
[Date "2023.05.23"]
[WhiteClock "0:02:05"]
[BlackClock "0:02:35"]

1. d4 {[%clk 0:02:38]}  Nf6 {[%clk 0:02:58]} 2. Nf3 {[%clk 0:02:37]}  c5 {[%clk 0:02:56]} 3. d5 {[%clk 0:02:36]}  b5 {[%clk 0:02:56]} 4. e4 {[%clk 0:02:33]}  Nxe4 {[%clk 0:02:54]} 5. Bxb5 {[%clk 0:02:33]}  Qa5+ {[%clk 0:02:52]} 6. Nc3 {[%clk 0:02:26]}  Nxc3 {[%clk 0:02:52]} 7. bxc3 {[%clk 0:02:26]}  Qxb5 {[%clk 0:02:51]} 8. Be3 {[%clk 0:02:22]}  d6 {[%clk 0:02:50]} 9. Rb1 {[%clk 0:02:21]}  Qa6 {[%clk 0:02:50]} 10. Nd2 {[%clk 0:02:20]}  g6 {[%clk 0:02:46]} 11. c4 {[%clk 0:02:21]}  Bg7 {[%clk 0:02:46]} 12. O-O {[%clk 0:02:21]}  O-O {[%clk 0:02:46]} 13. h4 {[%clk 0:02:20]}  Nd7 {[%clk 0:02:45]} 14. h5 {[%clk 0:02:20]}  Ne5 {[%clk 0:02:44]} 15. hxg6 {[%clk 0:02:19]}  fxg6 {[%clk 0:02:42]} 16. Qe2 {[%clk 0:02:19]}  Bf5 {[%clk 0:02:39]} 17. Rb5 {[%clk 0:02:18]}  Qxa2 {[%clk 0:02:36]} 18. Rc1 {[%clk 0:02:05]}  Rab8 {[%clk 0:02:35]} 0-1


[Site "https://www.chess.com"]

[Event "Titled Tuesday Blitz May 23 Early 2023"]
[White "Maltsevskaya, Aleksandra"]
[Black "Antonio, Jorge Carlos"]
[WhiteFideId "24174041"]
[BlackFideId "113190"]
[WhiteElo "2302"]
[BlackElo "2247"]
[Result "1-0"]
[Round "02"]
[TimeControl "180+2"]
[Date "2023.05.23"]
[WhiteClock "0:01:53"]
[BlackClock "0:00:39"]

1. e4 {[%clk 0:02:41]}  c5 {[%clk 0:02:59]} 2. Nf3 {[%clk 0:02:41]}  e6 {[%clk 0:02:59]} 3. d4 {[%clk 0:02:39]}  cxd4 {[%clk 0:03:00]} 4. Nxd4 {[%clk 0:02:40]}  a6 {[%clk 0:03:00]} 5. Nc3 {[%clk 0:02:39]}  Qc7 {[%clk 0:02:52]} 6. g3 {[%clk 0:02:39]}  Nf6 {[%clk 0:02:50]} 7. Bg2 {[%clk 0:02:39]}  Bc5 {[%clk 0:02:46]} 8. O-O {[%clk 0:02:37]}  Nc6 {[%clk 0:02:42]} 9. Nb3 {[%clk 0:02:34]}  Ba7 {[%clk 0:02:40]} 10. Bf4 {[%clk 0:02:33]}  Ne5 {[%clk 0:02:31]} 11. h3 {[%clk 0:02:27]}  d6 {[%clk 0:02:29]} 12. Qd2 {[%clk 0:02:26]}  Nh5 {[%clk 0:02:24]} 13. Bxe5 {[%clk 0:02:22]}  dxe5 {[%clk 0:02:23]} 14. Qg5 {[%clk 0:02:23]}  g6 {[%clk 0:02:19]} 15. Rad1 {[%clk 0:02:19]}  O-O {[%clk 0:02:11]} 16. Bf3 {[%clk 0:02:15]}  f6 {[%clk 0:02:08]} 17. Qd2 {[%clk 0:02:15]}  Nxg3 {[%clk 0:02:03]} 18. Rfe1 {[%clk 0:02:13]}  f5 {[%clk 0:01:57]} 19. Kh2 {[%clk 0:02:11]}  fxe4 {[%clk 0:01:47]} 20. fxg3 {[%clk 0:02:04]}  exf3 {[%clk 0:01:41]} 21. Ne4 {[%clk 0:02:05]}  Bd7 {[%clk 0:01:37]} 22. Qxd7 {[%clk 0:02:04]}  Qxc2+ {[%clk 0:01:35]} 23. Rd2 {[%clk 0:02:05]}  Qc4 {[%clk 0:01:15]} 24. Rc1 {[%clk 0:01:56]}  Qxe4 {[%clk 0:00:54]} 25. Rc7 {[%clk 0:01:56]}  Bg1+ {[%clk 0:00:46]} 26. Kxg1 {[%clk 0:01:55]}  f2+ {[%clk 0:00:43]} 27. Kh2 {[%clk 0:01:54]}  f1=Q {[%clk 0:00:39]} 28. Qg7# {[%clk 0:01:53]} 1-0


[Site "https://www.chess.com"]

[Event "Titled Tuesday Blitz May 23 Early 2023"]
[White "Bashirli, Saadat"]
[Black "Ilkhomi, Jaloliddin"]
[WhiteFideId "13429990"]
[BlackFideId "14700948"]
[WhiteElo "1408"]
[BlackElo "2045"]
[Result "1-0"]
[Round "02"]
[TimeControl "180+2"]
[Date "2023.05.23"]
[WhiteClock "0:00:50"]
[BlackClock "0:00:42"]

1. d4 {[%clk 0:03:00]}  Nf6 {[%clk 0:02:59]} 2. e3 {[%clk 0:03:01]}  e6 {[%clk 0:02:59]} 3. f4 {[%clk 0:03:01]}  b6 {[%clk 0:02:59]} 4. Nf3 {[%clk 0:03:01]}  Bb7 {[%clk 0:03:00]} 5. Bd3 {[%clk 0:03:01]}  d6 {[%clk 0:03:00]} 6. Nbd2 {[%clk 0:03:01]}  Nbd7 {[%clk 0:03:00]} 7. O-O {[%clk 0:03:02]}  c5 {[%clk 0:03:00]} 8. c3 {[%clk 0:03:02]}  Qc7 {[%clk 0:03:00]} 9. a4 {[%clk 0:03:01]}  a6 {[%clk 0:02:59]} 10. Qe2 {[%clk 0:02:57]}  e5 {[%clk 0:02:58]} 11. fxe5 {[%clk 0:02:56]}  dxe5 {[%clk 0:02:59]} 12. dxe5 {[%clk 0:02:55]}  Nxe5 {[%clk 0:02:59]} 13. Nxe5 {[%clk 0:02:56]}  Qxe5 {[%clk 0:03:00]} 14. Nc4 {[%clk 0:02:55]}  Qc7 {[%clk 0:02:56]} 15. e4 {[%clk 0:02:54]}  O-O-O {[%clk 0:02:43]} 16. Bf4 {[%clk 0:02:49]}  Qc6 {[%clk 0:02:23]} 17. Ne5 {[%clk 0:02:42]}  Qe8 {[%clk 0:02:11]} 18. Bxa6 {[%clk 0:02:37]}  Bd6 {[%clk 0:02:12]} 19. Bxb7+ {[%clk 0:02:23]}  Kxb7 {[%clk 0:02:09]} 20. Nc4 {[%clk 0:02:13]}  Bxf4 {[%clk 0:02:01]} 21. Rxf4 {[%clk 0:02:14]}  Qc6 {[%clk 0:01:45]} 22. e5 {[%clk 0:01:59]}  Rhe8 {[%clk 0:01:43]} 23. Qf2 {[%clk 0:01:46]}  Ne4 {[%clk 0:01:37]} 24. Rxf7+ {[%clk 0:01:45]}  Rd7 {[%clk 0:01:37]} 25. Rxd7+ {[%clk 0:01:34]}  Qxd7 {[%clk 0:01:38]} 26. Qf3 {[%clk 0:01:33]}  Qc6 {[%clk 0:01:26]} 27. Qxe4 {[%clk 0:01:32]}  Qxe4 {[%clk 0:00:48]} 28. Nd6+ {[%clk 0:01:32]}  Kc6 {[%clk 0:00:49]} 29. Nxe4 {[%clk 0:01:32]}  Rxe5 {[%clk 0:00:50]} 30. Ng3 {[%clk 0:01:27]}  h5 {[%clk 0:00:49]} 31. Kf2 {[%clk 0:01:09]}  h4 {[%clk 0:00:49]} 32. Nf1 {[%clk 0:01:07]}  g5 {[%clk 0:00:48]} 33. Ne3 {[%clk 0:01:05]}  Re4 {[%clk 0:00:47]} 34. g3 {[%clk 0:01:05]}  h3 {[%clk 0:00:46]} 35. b3 {[%clk 0:00:56]}  g4 {[%clk 0:00:45]} 36. Rd1 {[%clk 0:00:53]}  Re7 {[%clk 0:00:43]} 37. Nxg4 {[%clk 0:00:51]}  Rf7+ {[%clk 0:00:42]} 38. Kg1 {[%clk 0:00:50]}  Rf3 {[%clk 0:00:42]} 39. Ne5+ {[%clk 0:00:50]} 1-0


[Site "https://www.chess.com"]

[Event "Titled Tuesday Blitz May 23 Early 2023"]
[White "Jeet, Jain"]
[Black "Tsyhanchuk, Stanislav"]
[WhiteFideId "5073022"]
[BlackFideId "13505130"]
[WhiteElo "2067"]
[BlackElo "2173"]
[Result "0-1"]
[Round "02"]
[TimeControl "180+2"]
[Date "2023.05.23"]
[WhiteClock "0:01:07"]
[BlackClock "0:00:15"]

1. d4 {[%clk 0:02:59]}  Nf6 {[%clk 0:02:59]} 2. Nf3 {[%clk 0:02:59]}  e6 {[%clk 0:02:58]} 3. e3 {[%clk 0:02:59]}  d5 {[%clk 0:02:57]} 4. Be2 {[%clk 0:02:58]}  Be7 {[%clk 0:02:56]} 5. O-O {[%clk 0:02:59]}  O-O {[%clk 0:02:56]} 6. b3 {[%clk 0:03:00]}  b6 {[%clk 0:02:56]} 7. Bb2 {[%clk 0:03:00]}  Bb7 {[%clk 0:02:56]} 8. c4 {[%clk 0:03:01]}  Ne4 {[%clk 0:02:51]} 9. Nbd2 {[%clk 0:02:58]}  dxc4 {[%clk 0:02:49]} 10. bxc4 {[%clk 0:02:55]}  Nd7 {[%clk 0:02:49]} 11. Nxe4 {[%clk 0:02:52]}  Bxe4 {[%clk 0:02:48]} 12. Nd2 {[%clk 0:02:52]}  Bb7 {[%clk 0:02:41]} 13. Bf3 {[%clk 0:02:46]}  Qc8 {[%clk 0:02:31]} 14. e4 {[%clk 0:02:43]}  c5 {[%clk 0:02:22]} 15. d5 {[%clk 0:02:43]}  e5 {[%clk 0:02:17]} 16. a4 {[%clk 0:02:42]}  Bd6 {[%clk 0:02:14]} 17. Bg4 {[%clk 0:02:41]}  Qd8 {[%clk 0:02:09]} 18. Qb3 {[%clk 0:02:32]}  Bc8 {[%clk 0:02:01]} 19. Rae1 {[%clk 0:02:27]}  Qc7 {[%clk 0:01:34]} 20. Qc3 {[%clk 0:02:23]}  Nb8 {[%clk 0:01:22]} 21. Bxc8 {[%clk 0:02:21]}  Rxc8 {[%clk 0:01:23]} 22. f4 {[%clk 0:02:21]}  f6 {[%clk 0:01:22]} 23. Nf3 {[%clk 0:02:15]}  Nd7 {[%clk 0:01:22]} 24. f5 {[%clk 0:02:09]}  a6 {[%clk 0:01:14]} 25. g4 {[%clk 0:02:09]}  b5 {[%clk 0:01:12]} 26. axb5 {[%clk 0:02:08]}  axb5 {[%clk 0:01:13]} 27. cxb5 {[%clk 0:02:07]}  c4 {[%clk 0:01:14]} 28. g5 {[%clk 0:02:05]}  fxg5 {[%clk 0:00:45]} 29. Nxg5 {[%clk 0:02:04]}  Bc5+ {[%clk 0:00:45]} 30. Kh1 {[%clk 0:02:04]}  Bd4 {[%clk 0:00:46]} 31. Qc1 {[%clk 0:02:01]}  c3 {[%clk 0:00:45]} 32. Ba1 {[%clk 0:01:59]}  Nf6 {[%clk 0:00:43]} 33. Ne6 {[%clk 0:01:58]}  Qb7 {[%clk 0:00:32]} 34. Rf3 {[%clk 0:01:48]}  Nxe4 {[%clk 0:00:16]} 35. Rxe4 {[%clk 0:01:24]}  Qxd5 {[%clk 0:00:16]} 36. Qg5 {[%clk 0:01:25]}  Ra7 {[%clk 0:00:15]} 37. Qg4 {[%clk 0:01:12]}  Rxa1+ {[%clk 0:00:14]} 38. Kg2 {[%clk 0:01:12]}  Rg1+ {[%clk 0:00:14]} 39. Kh3 {[%clk 0:01:10]}  Rxg4 {[%clk 0:00:15]} 40. Kxg4 {[%clk 0:01:07]}  Qxe4+ {[%clk 0:00:15]} 0-1


[Site "https://www.chess.com"]